{"text_format":"1","workbook":"xlsx","n_sheets":6,"sheets":["ОВО","Плоская кровля","Двухскатная кровля","Молниеприемник","Лист4","Расчет зон защиты МП"],"not_rendered":{"charts":0,"images":13,"macros":1,"external_links":0,"defined_names":14,"comments":2,"pivot_tables":0},"unopened":[],"bounds":{"document_bytes":16777216,"sheet_cells":100000,"rows_first":2000,"rows_last":500,"rows_between":2000,"halvings":0,"cell_chars":16384,"cell_head_chars":4096},"cells_cut":0,"cells_raw":0,"read":"whole","date_system":"1900"}

{"sheet":"ОВО","index":0,"n_rows":3,"n_cols":18,"rows_kept":3,"cut":false,"hidden":false,"merged":[[2,1,2,6],[2,10,2,15],[2,17,2,22]]}
[]
[]
[null,"Двухскатная кровля",null,null,null,null,null,null,null,null,"Плоская кровля",null,null,null,null,null,null,"Молниеприемная мачта"]

{"sheet":"Плоская кровля","index":1,"n_rows":29,"n_cols":15,"rows_kept":29,"cut":false,"hidden":false,"merged":[]}
["Исходные данные:",null,null,null,null,null,null,null,"Спецификация молниеприемного устройства:"]
[null,null,null,null,null,null,null,null,"№","Наименование","Тип","Арт.","Ед.изм.","Кол.","Примечание"]
["А=",10,"м; ширина здания",null,null,null,null,null,1,"Круглый проводник из оцинкованной стали Ø=8мм","RD 8 FT",5021081,"м",80]
["В=",10,"м; длина здания",null,null,null,null,null,2,"Компенсатор проволоки","172 AR",5218926,"шт",0]
["Н=",10,"м; высота здания",null,null,null,null,null,3,"Соединитель Vario для быстрого монтажа","249 8-10 ST",5311500,"шт",9]
[null,null,null,null,null,null,null,null,4,"Держатель для плоской кровли","165 MBG-8",5218691,"шт",20]
[null,5,"м; шаг ячейки",null,null,null,null,null,5,"Универсальный клеммный зажим для для круглых проводников Rd 8-10мм","324 S-FT",5326303,"шт",58]
[null,null,null,null,null,null,null,null,6,"Соединительная скоба-перемычка","288 DIN",5320712,"шт",58]
["Размер ячеек в зависимости от класса МЗ:",null,null,null,null,null,null,null,7,"Держатель для круглых проводников Rd 8-10мм, с перемычкой","113 Z8-10",5229960,"шт",29]
["• класс I = 5 х 5м; ",null,null,null,null,null,null,null,8,"Разделительный зажим для круглых проводников Rd 8-10 и плоских проводников FL 30-40 мм","233 A VA",5336457,"шт",2]
["• класс II = 10 х 10м; "]
["• класс III и IV = 15 х 15м; ",null,null,null,null,null,null,null,"Спецификация заземляющего устройства:"]
[null,null,null,null,null,null,null,null,"№","Наименование","Тип","Арт.","Ед.изм.","Кол."]
["Данные для расчета сопротивления заземляющего устройства:",null,null,null,null,null,null,null,9,"Плоский проводник из оцинкованной стали 40x4мм","5052 DIN",5019355,"м",48]
[null,"Глина","- удел. сопротивление грунта, Ом·м",null,null,null,null,null,10,"Крестовой соединитель DIN для плоских проводников 40мм","256 A-DIN",5314666,"шт",10]
[null,"3 зона","- климатическая зона",null,null,null,null,null,11,"Универсальный соединитель для стержней заземления","2760 20 FT",5001641,"шт",8]
[null,10,"- нормируемое сопротивление ПУЭ",null,null,null,null,null,12,"Стержень заземления OMEX","219 20 FT",5000017,"шт",16]
[null,null,null,null,null,null,null,null,13,"Наконечник для стержня заземления OMEX","1819 20",3041204,"шт",8]
["Климатические зоны:",null,null,null,null,null,null,null,14,"Ударный наконечник для стержней OMEX","1820 20",3042200,"шт",1]
["1 зона",null,null,null,null,null,null,null,15,"Антикоррозионная лента","356 50",2360055,"шт",3]
["2 зона"]
["3 зона",null,null,null,null,null,null,null,"Параметры заземляющего устройства:"]
["4 зона",null,null,null,null,null,null,null,"№","Наименование параметра","Величина","Ед.изм."]
[null,null,null,null,null,null,null,null,1,"Сопротивление одного вертикального электрода",23.386477225729507,"Ом"]
[null,null,null,null,null,null,null,null,2,"Сопротивление одиночного заземлителя с учетом коэффициента использования",34.905189889148517,"Ом"]
[null,null,null,null,null,null,null,null,3,"Сопротивление соединительной полосы с учетом коэффициента использования",31.935184869603418,"Ом"]
[null,null,null,null,null,null,null,null,4,"Сопротивление вертикальных заземлителей с учетом соединительной полосы",7.3880757041447875,"Ом"]
[null,null,null,null,null,null,null,null,5,"Минимальное количество вертикальных заземлителей с учетом соединительной полосы",8,"шт"]
["(P.S. Для открытия файла в Автокаде, нажми 2 раза левой кнопкой мыши)"]

{"sheet":"Двухскатная кровля","index":2,"n_rows":28,"n_cols":16,"rows_kept":28,"cut":false,"hidden":false,"merged":[]}
["Исходные данные:",null,null,null,null,null,null,null,null,"Спецификация молниеприемного устройства:"]
[null,null,null,null,null,null,null,null,null,"№","Наименование","Тип","Арт.","Ед.изм.","Кол.","Примечание"]
["А=",20,"м; ширина здания",null,null,null,null,null,null,1,"Круглый проводник Ø=8мм","RD 8 FT",5021081,"м",178]
["В=",10,"м; длина здания",null,null,null,null,null,null,2,"Соединитель Vario для быстрого монтажа","249 8-10 FT",5311500,"шт",40]
["Н=",7,"м; высота здания",null,null,null,null,null,null,3,"Держатель проволоки на коньке","132 N-DK",5202566,"шт",72]
[null,null,null,null,null,null,null,null,null,4,"Держатель проволоки на скатной кровле","157 FK-VA 230",5215544,"шт",143]
[null,50,"м; кол-во проволоки на коньке ",null,null,null,null,null,null,5,"Держатель для водосточных труб",262,5316014,"шт",4]
[null,100,"м; кол-во проволоки на скатной кровле",null,null,null,null,null,null,6,"Держатель для круглых проводников Rd 8-10мм, с перемычкой","113 Z8-10",5229960,"шт",40]
[null,null,null,null,null,null,null,null,null,7,"Разделительный зажим для круглых проводников Rd 8-10 и плоских проводников FL 30-40 мм","233 A VA",5336457,"шт",4]
[null,"Гор.цинк","материал молниеприемного устройства"]
[null,null,null,null,null,null,null,null,null,"Спецификация заземляющего устройства:"]
["Данные для расчета сопротивления заземляющего устройства:",null,null,null,null,null,null,null,null,"№","Наименование","Тип","Арт.","Ед.изм.","Кол."]
[null,"Глина","- удел. сопротивление грунта, Ом·м",null,null,null,null,null,null,8,"Плоский проводник из оцинкованной стали 40x4мм","5052 DIN",5019355,"м",68]
[null,"4 зона","- климатическая зона",null,null,null,null,null,null,9,"Крестовой соединитель DIN для плоских проводников 40мм","256 A-DIN",5314666,"шт",6]
[null,20,"- нормируемое сопротивление ПУЭ",null,null,null,null,null,null,10,"Универсальный соединитель для стержней заземления","2760 20 FT",5001641,"шт",4]
[null,null,null,null,null,null,null,null,null,11,"Стержень заземления OMEX","219 20 FT",5000017,"шт",8]
["Климатические зоны:",null,null,null,null,null,null,null,null,12,"Наконечник для стержня заземления OMEX","1819 20",3041204,"шт",4]
["1 зона",null,null,null,null,null,null,null,null,13,"Ударный наконечник для стержней OMEX","1820 20",3042200,"шт",1]
["2 зона",null,null,null,null,null,null,null,null,14,"Антикоррозионная лента","356 50",2360055,"шт",1]
["3 зона"]
["4 зона",null,null,null,null,null,null,null,null,"Параметры заземляющего устройства:"]
[null,null,null,null,null,null,null,null,null,"№","Наименование параметра","Величина","Ед.изм."]
[null,null,null,null,null,null,null,null,null,1,"Сопротивление одного вертикального электрода",22.369673868089098,"Ом"]
[null,null,null,null,null,null,null,null,null,2,"Сопротивление одиночного заземлителя с учетом коэффициента использования",33.387572937446414,"Ом"]
[null,null,null,null,null,null,null,null,null,3,"Сопротивление соединительной полосы с учетом коэффициента использования",44.643353295713972,"Ом"]
[null,null,null,null,null,null,null,null,null,4,"Сопротивление вертикальных заземлителей с учетом соединительной полосы",16.411311506373551,"Ом"]
[null,null,null,null,null,null,null,null,null,5,"Минимальное количество вертикальных заземлителей с учетом соединительной полосы",4,"шт"]
["(P.S. Для открытия файла в Автокаде, нажми 2 раза левой кнопкой мыши)"]

{"sheet":"Молниеприемник","index":3,"n_rows":17,"n_cols":13,"rows_kept":17,"cut":false,"hidden":false,"merged":[]}
["Исходные данные:",null,null,null,null,null,null,"Расчет зоны защиты молниеприемной мачты:"]
[null,null,null,null,null,null,null,"Параметр","Наименование","Величина","Ед.изм."]
["Н=",8,"м, высота молниеприемника",null,null,null,null,"Н","Высота молниеприемниой мачты",8,"м"]
["Нх=",0.5,"м, высота защищаемого объекта",null,null,null,null,"Нх","Высота защищаемого объекта",0.5,"м"]
["Рз=",0.9,"в соответствии с \"СО 153-34.21.122-2003\"",null,null,null,null,"Но","Высота зоны защиты",6.8,"м"]
[null,null,null,null,null,null,null,"Ro","Радиус защиты у основания молниеприемника",9.6,"м"]
[null,"на плоской кровле","тип крепления",null,null,null,null,"Rx","Радиус защиты на высоте защищаемого объекта",8.8941176470588239,"м"]
[null,3,"шт, количество молниеприемных мачт"]
[null,null,null,null,null,null,null,"Спецификация оборудования молниеприемной мачты:"]
["Тип крепления:",null,null,null,null,null,null,"№","Наименование","Тип","Арт.","Кол.","Ед.изм."]
[1,"на плоской кровле",null,null,null,null,null,1,"Молниеприемная мачта","101 3B-8000",5402880,3,"шт"]
[2,"к вент.шахте",null,null,null,null,null,2,"Треножный штатив IsFang, 1,0м","isFang 3B-150",5408969,3,"шт"]
[null,null,null,null,null,null,null,3,"Бетонное основание FangFix, без рамки","F-FIX-S16",5403227,27,"шт"]
[null,null,null,null,null,null,null,4,"Рамка бетонного основания FangFix","F-FIX-B16",5403228,9,"шт"]
[null,null,null,null,null,null,null,5,"Стержень резьбовой isFang-3B","isFang 3B-G3",5408973,9,"шт"]
[null,null,null,null,null,null,null,6,"Ленточная скоба подключения проволоки","927 1",5057515,3,"шт"]
["(P.S. Для открытия файла в Автокаде, нажми 2 раза левой кнопкой мыши)"]

{"sheet":"Лист4","index":4,"n_rows":15,"n_cols":16,"rows_kept":15,"cut":false,"hidden":true,"merged":[]}
["Шаг ячейки:",null,"Норма сопротивления:",null,null,"Удельное сопротивление почвы:",null,null,null,"Тип МЗ:",null,"высота молниеприемника",null,null,null,"надежность Рз"]
[5,null,10,null,null,"Глина",null,null,null,"Гор.цинк",null,1.5,{"$f":"Молниеприемник!B3","v":8},null,null,0.9]
[10,null,20,null,null,"Суглинок",null,null,null,"Медь",null,2,null,null,null,0.99]
[15,null,30,null,null,"Супесь",null,null,null,"Нержавейка",null,2.5,null,null,null,0.999]
[null,null,null,null,null,"Лёсс",null,null,null,null,null,3]
[null,null,null,null,null,"Торф",null,null,null,null,null,3.5]
[null,null,null,null,null,"Песок",null,null,null,null,null,4]
[null,null,null,null,null,"Чернозем",null,null,null,null,null,4.5]
[null,null,null,null,null,null,null,null,null,null,null,5]
[null,null,null,null,null,null,null,null,null,null,null,5.5]
[null,null,null,null,null,null,null,null,null,null,null,6]
[null,null,null,null,null,null,null,null,null,null,null,6.5]
[null,null,null,null,null,null,null,null,null,null,null,7]
[null,null,null,null,null,null,null,null,null,null,null,7.5]
[null,null,null,null,null,null,null,null,null,null,null,8]

{"sheet":"Расчет зон защиты МП","index":5,"n_rows":31,"n_cols":26,"rows_kept":31,"cut":false,"hidden":false,"merged":[]}
[null,"СО 153-34.21.122-2003",null,null,null,null,null,null,null,null,null,null,null,null,null,null,null,"РД 34.21.122-87"]
["одиночный стержневой молниеотвод",null,null,null,null,null,null,null,null,null,null,null,null,null,null,null,"одиночный стержневой молниеотвод",null,null,null,1,2,"ср.знач."]
["высота молниеотвода (-ов), м",null,null,"h=",19,5,null,null,null,null,null,null,null,null,null,null,"высота молниеотвода (-ов), м",null,null,"h=",2.7130000000000001,{"$f":"F3","v":5}]
["надежность защиты",null,null,"Pз =",0.9,null,null,null,null,null,null,null,null,null,null,null,"зона защиты",null,null,"ЗОНА","а",null,null,null,null,{"$f":"0.85*30.5","v":25.925000000000001}]
["высота конуса, м",null,null,"h0=",{"$f":"IF($E$4=0.9, 0.85*$E$3, IF($E$4=0.99,  IF($E$3<=100, 0.8*$E$3, (0.8-10^-3*($E$3-100))*$E$3), IF($E$4=0.999, IF($E$3<=30, 0.7*$E$3, IF($E$3<=100, (0.7-7.14*10^-4*($E$3-30))*$E$3, (0.65-10^-3*($E$3-100))*$E$3)), \"неверная надежность защиты\")))","v":16.149999999999999},{"$f":"IF($E$4=0.9, 0.85*$F$3, IF($E$4=0.99,  IF($F$3<=100, 0.8*$F$3, (0.8-10^-3*($F$3-100))*$F$3), IF($E$4=0.999, IF($F$3<=30, 0.7*$F$3, IF($F$3<=100, (0.7-7.14*10^-4*($F$3-30))*$F$3, (0.65-10^-3*($F$3-100))*$F$3)), \"неверная надежность защиты\")))","v":4.25},null,null,null,null,null,null,null,null,null,null,"высота конуса, м",null,null,"h0=",{"$f":"IF($U$4=\"А\", IF($U$3>150, (0.85-1.7*10^-3*($U$3-150))*$U$3, 0.85*$U$3), IF($U$4=\"Б\", IF($U$3>150, (0.92-0.8*10^-3*($U$3-150))*$U$3, 0.92*$U$3), \"неверная зона защиты\"))","v":2.3060499999999999},{"$f":"IF($U$4=\"А\", IF($V$3>150, (0.85-1.7*10^-3*($V$3-150))*$V$3, 0.85*$V$3), IF($U$4=\"Б\", IF($V$3>150, (0.92-0.8*10^-3*($V$3-150))*$V$3, 0.92*$V$3), \"неверная зона защиты\"))","v":4.25},null,null,null,{"$f":"(1.1-0.002*30.5)*30.5","v":31.689500000000006}]
["радиус конуса, м",null,null,"r0=",{"$f":"IF($E$4=0.9, IF($E$3<=100, 1.2*$E$3, (1.2-10^-3*($E$3-100))*$E$3), IF($E$4=0.99,  IF($E$3<=30, 0.8*$E$3, IF($E$3<=100, (0.8-1.43*10^-3*($E$3-30))*$E$3, 0.7*$E$3)), IF($E$4=0.999, IF($E$3<=30, 0.6*$E$3, IF($E$3<=100, (0.6-1.43*10^-3*($E$3-30))*$E$3, (0.5-2*10^-3*($E$3-100))*$E$3)), \"неверная надежность защиты\")))","v":22.8},{"$f":"IF($E$4=0.9, IF($F$3<=100, 1.2*$F$3, (1.2-10^-3*($F$3-100))*$F$3), IF($E$4=0.99,  IF($F$3<=30, 0.8*$F$3, IF($F$3<=100, (0.8-1.43*10^-3*($F$3-30))*$F$3, 0.7*$F$3)), IF($E$4=0.999, IF($F$3<=30, 0.6*$F$3, IF($F$3<=100, (0.6-1.43*10^-3*($F$3-30))*$F$3, (0.5-2*10^-3*($F$3-100))*$F$3)), \"неверная надежность защиты\")))","v":6},null,null,null,null,null,null,null,null,null,null,"радиус конуса, м",null,null,"r0=",{"$f":"IF($U$4=\"А\", IF($U$3>150, (0.8-1.8*10^-3*($U$3-150))*$U$3, (1.1-0.002*$U$3)*$U$3), IF($U$4=\"Б\", IF($U$3>150, 225, 1.5*$U$3), \"неверная зона защиты\"))","v":2.9695792620000003},{"$f":"IF($U$4=\"А\", IF($V$3>150, (0.8-1.8*10^-3*($V$3-150))*$V$3, (1.1-0.002*$V$3)*$V$3), IF($U$4=\"Б\", IF($V$3>150, 225, 1.5*$V$3), \"неверная зона защиты\"))","v":5.45},null,null,null,{"$f":"Z4-(0.17+0.0003*30.5)*(29.05-30.5)","v":26.1847675}]
[]
["высота зоны защиты",null,null,"hx1=",4,null,null,null,null,null,null,null,null,null,null,null,"высота зоны защиты",null,null,"hx1=",1.5]
[null,null,null,"hx2=",17,null,null,null,null,null,null,null,null,null,null,null,null,null,null,"hx2=",{"$f":"E9","v":17}]
[null,null,null,"hx3=",14,null,null,null,null,null,null,null,null,null,null,null,null,null,null,"hx3=",14]
[null,null,null,"hx4=",11,null,null,null,null,null,null,null,null,null,null,null,null,null,null,"hx4=",11,null,null,null,{"$f":"(1.1-0.002*30.5)*(30.5-17/0.85)","v":10.909500000000001}]
[null,null,null,"hx5=",6,null,null,null,null,null,null,null,null,null,null,null,null,null,null,"hx5=",6,null,null,null,{"$f":"Z5*(Z6-17)/Z6","v":11.115649191509913}]
[]
[]
["радиус зоны защиты",null,null,"rx1=",{"$f":"IF($E8>$E$5, 0, $E$6*($E$5-$E8)/$E$5)","v":17.152941176470588},{"$f":"IF($E8>$F$5, 0, $F$6*($F$5-$E8)/$F$5)","v":0.35294117647058826},null,null,null,null,null,null,null,null,null,null,"радиус зоны защиты",null,null,"rx1=",{"$f":"IF($U$4=\"А\", IF(U$3>150, (0.85-1.7*10^-3*(U$3-150))*U$3*(1-$U8/(0.85-1.7*10^-3*(U$3-150))/U$3), (1.1-0.002*U$3)*(U$3-$U8/0.85)), IF($U$4=\"Б\", IF(U$3>150, 225-225*$U8/(0.92-0.8*10^-3*(U$3-150))/U$3, 1.5*(U$3-$U8/0.92)), \"неверная зона защиты\"))","v":1.0379780855294121},{"$f":"IF($U$4=\"А\", IF(V$3>150, (0.85-1.7*10^-3*(V$3-150))*V$3*(1-$U8/(0.85-1.7*10^-3*(V$3-150))/V$3), (1.1-0.002*V$3)*(V$3-$U8/0.85)), IF($U$4=\"Б\", IF(V$3>150, 225-225*$U8/(0.92-0.8*10^-3*(V$3-150))/V$3, 1.5*(V$3-$U8/0.92)), \"неверная зона защиты\"))","v":3.5264705882352945},null,null,{"$f":"3.282*(1-0.2*(6-3/3))","v":0}]
[null,null,null,"rx2=",{"$f":"IF($E9>$E$5, 0, $E$6*($E$5-$E9)/$E$5)","v":0},{"$f":"IF($E9>$F$5, 0, $F$6*($F$5-$E9)/$F$5)","v":0},null,null,null,null,null,null,null,null,null,null,null,null,null,"rx2=",{"$f":"IF($U$4=\"А\", IF(U$3>150, (0.85-1.7*10^-3*(U$3-150))*U$3*(1-$U9/(0.85-1.7*10^-3*(U$3-150))/U$3), (1.1-0.002*U$3)*(U$3-$U9/0.85)), IF($U$4=\"Б\", IF(U$3>150, 225-225*$U9/(0.92-0.8*10^-3*(U$3-150))/U$3, 1.5*(U$3-$U9/0.92)), \"неверная зона защиты\"))","v":-18.921900738000001},-16.350000000000001]
[null,null,null,"rx3=",{"$f":"IF($E10>$E$5, 0, $E$6*($E$5-$E10)/$E$5)","v":3.0352941176470569},0,null,null,null,null,null,null,null,null,null,null,null,null,null,"rx3=",-15.058698385058827,-12.502941176470591]
[null,null,null,"rx4=",7.2705882352941167,0,null,null,null,null,null,null,null,null,null,null,null,null,null,"rx4=",-11.195496032117648,-8.6558823529411768]
[null,null,null,"rx5=",14.329411764705883,0,null,null,null,null,null,null,null,null,null,null,null,null,null,"rx5=",-4.7568254438823532,-2.2441176470588236]
[]
["двойной стержневой молниеотвод",null,null,null,null,null,null,null,null,null,null,null,null,null,null,null,"двойной стержневой молниеотвод"]
["расстояние м/ду молниотводами, м",null,null,"L=",6,null,null,null,null,null,null,null,null,null,null,null,"расстояние м/ду молниотводами, м",null,null,"L=",5.4]
["предельное расстояние, м",null,null,"Lmax=",{"$f":"IF($E$4=0.9, IF($F$3<=30, 5.75*$F$3, IF($F$3<=100, (5.75-3.57*10^-3*($F$3-30))*$F$3, 5.5*$F$3)), IF($E$4=0.99,  IF($F$3<=30, 4.75*$F$3, IF($F$3<=100, (4.75-3.57*10^-3*($F$3-30))*$F$3, 4.5*$F$3)), IF($E$4=0.999, IF($F$3<=30, 4.25*$F$3, IF($F$3<=100, (4.25-3.57*10^-3*($F$3-30))*$F$3, 4*$F$3)), \"неверная надежность защиты\")))","v":28.75},{"$f":"IF($E$4=0.9, IF($F$3<=30, 5.75*$F$3, IF($F$3<=100, (5.75-3.57*10^-3*($F$3-30))*$F$3, 5.5*$F$3)), IF($E$4=0.99,  IF($F$3<=30, 4.75*$F$3, IF($F$3<=100, (4.75-3.57*10^-3*($F$3-30))*$F$3, 4.5*$F$3)), IF($E$4=0.999, IF($F$3<=30, 4.25*$F$3, IF($F$3<=100, (4.25-3.57*10^-3*($F$3-30))*$F$3, 4*$F$3)), \"неверная надежность защиты\")))","v":28.75},{"$f":"(E23+F23)/2","v":28.75},null,null,null,null,null,null,null,null,null,"предельное расстояние, м",null,null,"Lmax=",{"$f":"IF(U4=\"А\", 4*U3, IF(U4=\"Б\", 6*U3, \"неверная зона защиты\"))","v":10.852}]
["минимальное расстояние, м",null,null,"Lc=",{"$f":"IF($E$4=0.9, 2.5*$E$3, IF(OR($E$4=0.99, $E$4=0.999),  IF($E$3<=30, 2.25*$E$3, IF($E$3<=100, (2.25-0.0107*($E$3-30))*$E$3, 1.5*$E$3)), \"неверная надежность защиты\"))","v":47.5},{"$f":"IF($E$4=0.9, 2.5*$F$3, IF(OR($E$4=0.99, $E$4=0.999),  IF($F$3<=30, 2.25*$F$3, IF($F$3<=100, (2.25-0.0107*($F$3-30))*$F$3, 1.5*$F$3)), \"неверная надежность защиты\"))","v":12.5},{"$f":"(E24+F24)/2","v":30},null,null,null,null,null,null,null,null,null,"высота средней точки, м",null,null,"hc=",{"$f":"IF($U$4=\"А\",$U$5-(0.17+3*10^-4*$U$3)*($U$22-$U$3), IF($U$4=\"Б\", IF($U$22<=$U$3, $U$5, $U$5-0.14*($U$22-$U$3)), \"неверная зона защиты\"))","v":1.8470730506999997},{"$f":"IF($U$4=\"А\",$V$5-(0.17+3*10^-4*$V$3)*($U$22-$V$3), IF($U$4=\"Б\", IF($U$22<=$V$3, $V$5, $V$5-0.14*($U$22-$V$3)), \"неверная зона защиты\"))","v":4.1814},{"$f":"(U24+V24)/2","v":3.0142365253499999}]
["высота средней точки, м",null,null,"hc=",{"$f":"IF($E$22<$E$24, $E$5, ($E$23-$E$22)/($E$23-$E$24)*$E$5)","v":16.149999999999999},{"$f":"IF($E$22<$F$24, $F$5, ($F$23-$E$22)/($F$23-$F$24)*$F$5)","v":4.25},{"$f":"(E25+F25)/2","v":10.199999999999999},null,null,null,null,null,null,null,null,null,"ширина средней зоны, м",null,null,"rc=",{"$f":"IF($U$4=\"А\", IF($U$22<=$U$3, $U$6, $U$6*(1-0.2*($U$22-2*$U$3)/$U$3)), IF($U$4=\"Б\", $U$6, \"неверная зона защиты\"))","v":2.9752710468000005},{"$f":"IF($U$4=\"А\", IF($U$22<=$V$3, $V$6, $V$6*(1-0.2*($U$22-$V$3)/$V$3)), IF($U$4=\"Б\", $V$6, \"неверная зона защиты\"))","v":5.3628},{"$f":"(U25+V25)/2","v":4.1690355233999998}]
[]
[{"$f":"$E$6*($E$25-$E8)/$E$25","v":17.152941176470588},{"$f":"$F$6*($F$25-$E8)/$F$25","v":0.35294117647058826},null,{"$f":"IF($E8>$E$25, \"lx1=\", \"rcx1=\")","v":"rcx1="},{"$f":"IF($E8>$E$25, $E$22*($E$5-$E8)/2/($E$5-$E$25), $E$6*($E$25-$E8)/$E$25)","v":17.152941176470588},{"$f":"IF($E8>$F$25, $E$22*($F$5-$E8)/2/($F$5-$F$25), $F$6*($F$25-$E8)/$F$25)","v":0.35294117647058826},{"$f":"(A27+B27)/2","v":8.7529411764705873},null,null,null,null,null,null,null,null,null,null,null,null,"rcx1=",{"$f":"IF($U$4=\"А\", IF($U$22<=$U$3, $U$6*($U$24-$U8)/$U$24, $U$25*($U$24-$U8)/$U$24), IF($U$4=\"Б\", IF($U$22<=$U$3, $U15, $U$6*($U$24-$U8)/$U$24), \"неверная зона защиты\"))","v":0.55906635554068174},{"$f":"IF($U$4=\"А\", IF($U$22<=$V$3, $V$6*($V$24-$U8)/$V$24, $V$25*($V$24-$U8)/$V$24), IF($U$4=\"Б\", IF($U$22<=$V$3, $V15, $V$6*($V$24-$U8)/$V$24), \"неверная зона защиты\"))","v":3.4389945759793372},{"$f":"$W$25*($W$24-$U8)/$W$24","v":2.094363137040451}]
[{"$f":"$E$6*($E$25-$E9)/$E$25","v":-1.2000000000000022},{"$f":"$F$6*($F$25-$E9)/$F$25","v":-18},null,{"$f":"IF($E9>$E$25, \"lx2=\", \"rcx2=\")","v":"lx2="},{"$f":"IF($E9>$E$25, $E$22*($E$5-$E9)/2/($E$5-$E$25), $E$6*($E$25-$E9)/$E$25)","v":{"$error":"#DIV/0!"}},{"$f":"IF($E9>$F$25, $E$22*($F$5-$E9)/2/($F$5-$F$25), $F$6*($F$25-$E9)/$F$25)","v":{"$error":"#DIV/0!"}},{"$f":"(A28+B28)/2","v":-9.6000000000000014},null,null,null,null,null,null,null,null,null,null,null,null,"rcx2=",{"$f":"IF($U$4=\"А\", IF($U$22<=$U$3, $U$6*($U$24-$U9)/$U$24, $U$25*($U$24-$U9)/$U$24), IF($U$4=\"Б\", IF($U$22<=$U$3, $U16, $U$6*($U$24-$U9)/$U$24), \"неверная зона защиты\"))","v":-24.408382120805612},{"$f":"IF($U$4=\"А\", IF($U$22<=$V$3, $V$6*($V$24-$U9)/$V$24, $V$25*($V$24-$U9)/$V$24), IF($U$4=\"Б\", IF($U$22<=$V$3, $V16, $V$6*($V$24-$U9)/$V$24), \"неверная зона защиты\"))","v":-16.440328138900846},{"$f":"$W$25*($W$24-$U9)/$W$24","v":-19.343918188674888}]
[3.0352941176470569,-13.764705882352942,null,{"$f":"IF($E10>$E$25, \"lx3=\", \"rcx3=\")","v":"rcx3="},3.0352941176470569,{"$error":"#DIV/0!"},-5.3647058823529425,null,null,null,null,null,null,null,null,null,null,null,null,"rcx3=",-19.575972738286975,-12.592717290859522,-15.194573415955793]
[7.2705882352941167,-9.5294117647058822,null,{"$f":"IF($E11>$E$25, \"lx4=\", \"rcx4=\")","v":"rcx4="},7.2705882352941167,{"$f":"IF($E11>$F$25, $E$22*($F$5-$E11)/2/($F$5-$F$25), $F$6*($F$25-$E11)/$F$25)","v":{"$error":"#DIV/0!"}},-1.1294117647058828,null,null,null,null,null,null,null,null,null,null,null,null,"rcx4=",-14.743563355768336,-8.7451064428181962,{"$f":"$W$25*($W$24-$U11)/$W$24","v":-11.045228643236694}]
[14.329411764705883,-2.4705882352941178,null,{"$f":"IF($E12>$E$25, \"lx5=\", \"rcx5=\")","v":"rcx5="},14.329411764705883,{"$error":"#DIV/0!"},5.9294117647058826,null,null,null,null,null,null,null,null,null,null,null,null,"rcx5=",{"$f":"IF($U$4=\"А\", IF($U$22<=$U$3, $U$6*($U$24-$U12)/$U$24, $U$25*($U$24-$U12)/$U$24), IF($U$4=\"Б\", IF($U$22<=$U$3, $U19, $U$6*($U$24-$U12)/$U$24), \"неверная зона защиты\"))","v":-6.6895477182372742},{"$f":"IF($U$4=\"А\", IF($U$22<=$V$3, $V$6*($V$24-$U12)/$V$24, $V$25*($V$24-$U12)/$V$24), IF($U$4=\"Б\", IF($U$22<=$V$3, $V19, $V$6*($V$24-$U12)/$V$24), \"неверная зона защиты\"))","v":-2.3324216960826516},-4.1296540220381965]